Cogmind - Beta 12 @@@ ROGUE MODE // 2023.04.29 @ 20:42:58 Player: maxwell Result: Self-destructed Performance ------------- Evolutions (1) 500 Regions Visited (3) 600 Robots Destroyed (29) 145 Value Destroyed (611) 611 Prototype IDs (1) 20 Alien Tech Used (0) 0 Bonus (0) 0 TOTAL SCORE: 1876 Bonus ------- None Cogmind --------- Core Integrity 338/400 Matter 300/300 Energy 280/280 System Corruption 2% Temperature Cool (0) Movement Treading (160) Location -9/Mines Parts ------- > --- POWER (1) -------- Heavy Ion Engine > --- PROPULSION (2) --- Light Treads Light Treads > --- UTILITY (4) ------ Large Storage Unit Shield Generator Shield Generator Hacking Suite > --- WEAPON (2) ------- EM Shotgun EM Shotgun > --- INVENTORY (15) --- Heavy Ion Engine Heavy Ion Engine Light Treads Light Treads Light Treads Shield Generator EM Shotgun EM Shotgun EM Shotgun Assault Rifle Plasma Cutter Peak State ------------ > --- POWER ------------ Heavy Ion Engine > --- PROPULSION ------- Light Treads Light Treads > --- UTILITY ---------- Large Storage Unit Shield Generator Shield Generator Hacking Suite > --- WEAPON ----------- EM Shotgun EM Shotgun > --- INVENTORY -------- Heavy Ion Engine Heavy Ion Engine Light Treads Light Treads Light Treads Shield Generator EM Shotgun EM Shotgun EM Shotgun EM Shotgun EM Shotgun EM Shotgun Assault Rifle Plasma Cutter [Rating: 19] Favorites ----------- Power Heavy Ion Engine Engine Heavy Ion Engine Propulsion Aluminum Leg Treads Light Treads Leg Aluminum Leg Utility Large Storage Unit Device Shield Generator Storage Large Storage Unit Hackware Hacking Suite Weapon EM Shotgun Energy Gun EM Shotgun Build | -11 -10 -9 -9 ------- Run | Jun Mat Mat Min Slots Evolved 2 | . . 2 . Power . | . . . . Propulsion . | . . . . Utility 2 | . . 2 . Weapon . | . . . . Parts Attached 12 | . 7 5 . Power 1 | . 1 . . Engine 1 | . 1 . . Core . | . . . . Reactor . | . . . . Propulsion 2 | . 2 . . Treads 2 | . 2 . . Leg . | . . . . Wheel . | . . . . Hover . | . . . . Flight . | . . . . Utility 4 | . 2 2 . Device 2 | . 1 1 . Storage 1 | . 1 . . Processor . | . . . . Hackware 1 | . . 1 . Protection . | . . . . Artifact . | . . . . Weapon 5 | . 2 3 . Energy Gun 5 | . 2 3 . Energy Cannon . | . . . . Ballistic Gun . | . . . . Ballistic Cannon . | . . . . Launcher . | . . . . Special Weapon . | . . . . Impact Weapon . | . . . . Slashing Weapon . | . . . . Piercing Weapon . | . . . . Special Melee Weapon . | . . . . Unidentified Prototypes 1 | . 1 . . Corrupted Parts 1 | . . 1 . System Corruption 2 | . . 2 . Parts Lost 3 | . . 3 . Power . | . . . . Propulsion . | . . . . Utility . | . . . . Weapon 3 | . . 3 . Highest Loss Streak 1 | . . 1 . To Critical Strikes . | . . . . Average Slot Usage (%) 89 | . 88 92 . Engine 13 | . 14 11 . Treads 10 | . 6 22 . Leg 15 | . 21 . . Device 7 | . 3 18 . Storage 13 | . 14 11 . Hackware 2 | . . 7 . Energy Gun 26 | . 27 21 . Naked Turns . | . . . . Heaviest Build 38 | 12 36 38 . Greatest Support 40 | 20 40 40 . Greatest Overweight (x) 1 | . 1 . . Average Overweight (x) . | . . . . Largest Inventory Capacity 15 | . 15 15 . Average Capacity 14 | . 14 15 . Most Carried 15 | . 15 15 . Average Carried 11 | . 11 13 . Final Capacity 15 | 8 15 15 15 Final Carried 15 | 6 15 11 11 Class Distribution -------------------- 100% | Mutant Dominant Class ---------------- Mutant | -10/Materials Mutant | -9/Materials Mutant | -9/Mines Resources | -11 -10 -9 -9 ----------- Run | Jun Mat Mat Min Matter Collected 316 | 200 70 46 . Remotely . | . . . . Salvage Created 1118 | . 454 664 . Parts 68 | . 27 41 . Haulers Intercepted 3 | . 2 1 . Recyclers Shooed 2 | . 2 . . Parts Field Recycled . | . . . . Retrieved Matter . | . . . . Parts Self-Destructed . | . . . . Prevented . | . . . . Kills | -11 -10 -9 -9 ------- Run | Jun Mat Mat Min Combat Hostiles Destroyed 16 | . 5 11 . Guns 15 | . 4 11 . Classes Destroyed 9 | . 4 5 . Worker 2 | . . 2 . Builder 1 | . . 1 . Hauler 3 | . 2 1 . Recycler 1 | . 1 . . Operator 1 | . . 1 . Watcher 5 | . 2 3 . Swarmer 4 | . . 4 . Grunt 10 | . 5 5 . Sentry 2 | . . 2 . Best Kill Streak 7 | . 4 7 . Combat Bots Only 4 | . 3 4 . Max Kills in Single Turn 2 | . 1 2 . Gunslinging . | . . . . Exploded . | . . . . Melee . | . . . . Uniques/NPCs Destroyed . | . . . . Combat | -11 -10 -9 -9 -------- Run | Jun Mat Mat Min Damage Taken 502 | . 142 360 . Core 74 | . 12 62 . Absorbed by Shields 139 | . . 139 . Core Remaining (%) 97 | 100 95 . . Volleys Fired 45 | . 15 30 . Largest 2 | . 2 2 . Hottest 90 | . 90 90 . Shots Fired 89 | . 30 59 . Gun 89 | . 30 59 . Cannon . | . . . . Launcher . | . . . . Special . | . . . . Kinetic . | . . . . Thermal . | . . . . Explosive . | . . . . Electromagnetic 89 | . 30 59 . Robot Hit Streak 14 | . 14 14 . Robot Miss Streak 4 | . 2 4 . Penetration Max . | . . . . Secondary Targets 1 | . . 1 . Max Gunslinging Chain 1 | . . 1 . Shots Hit Robots 74 | . 25 49 . Core Hits 51 | . 18 33 . Critical Kills . | . . . . Critical Parts Destroyed . | . . . . Critical Strikes . | . . . . Melee Attacks . | . . . . Impact . | . . . . Slashing . | . . . . Piercing . | . . . . Sneak Attacks . | . . . . Combat Hostiles . | . . . . Follow-up Attacks . | . . . . Damage Inflicted 1291 | . 555 736 . Guns 1146 | . 410 736 . Cannons . | . . . . Explosions 71 | . 71 . . Melee . | . . . . Ramming 74 | . 74 . . Kinetic . | . . . . Thermal 71 | . 71 . . Explosive . | . . . . Electromagnetic 1146 | . 410 736 . Impact . | . . . . Slashing . | . . . . Piercing . | . . . . Highest Corruption 2 | . . 2 . Average Corruption 2 | . . 2 . Corruption Purged . | . . . . Corruption Blocked . | . . . . Effects 2 | . . 2 . Matter Fused 1 | . . 1 . Misfires 1 | . . 1 . Overload Shots . | . . . . Overflow Damage . | . . . . Projectiles . | . . . . Explosions . | . . . . Melee . | . . . . Knockbacks 1 | . 1 . . Impact 1 | . 1 . . Kinetic . | . . . . Secondary . | . . . . Self-Inflicted Damage 74 | . 74 . . Shots 2 | . 2 . . Rammed 1 | . 1 . . Targets Rammed 9 | . 9 . . Kicked 8 | . 8 . . Crushed . | . . . . Highest Temperature 273 | . 273 164 . Average Temperature 67 | . 85 56 . Received Heat Transfer 146 | . 36 110 . Siege Activations . | . . . . Robots Corrupted 1 | . 1 . . Combat Hostiles 1 | . 1 . . Parts Fried 4 | . 1 3 . Impact Corruptions . | . . . . Robots Melted . | . . . . Combat Hostiles . | . . . . Parts Melted . | . . . . Heat Transferred 100 | . 100 . . Parts Sabotaged . | . . . . Parts Stolen . | . . . . Parts Stripped . | . . . . Power Chain Reactions 2 | . 2 . . Missiles Intercepted . | . . . . Alert | -11 -10 -9 -9 ------- Run | Jun Mat Mat Min Peak Influence 211 | . 124 211 . Initial 57 | . . . 57 Average 41 | . 25 82 . Maximum Alert Level 1 | . . 1 . Low Security (%) 97 | . 100 92 . Level 1 2 | . . 7 . Level 2 . | . . . . Level 3 . | . . . . Level 4 . | . . . . Level 5 . | . . . . High Security . | . . . . Max Security . | . . . . Squads Dispatched 3 | . 3 . . Investigation 2 | . 2 . . Extermination . | . . . . Reinforcement 1 | . 1 . . Assault . | . . . . Garrison . | . . . . Intercept . | . . . . Searches Triggered . | . . . . Construction Impeded . | . . . . Haulers Reinforced . | . . . . Active Scanning Responses . | . . . . Cargo Convoy Interrupts . | . . . . Stealth | -11 -10 -9 -9 --------- Run | Jun Mat Mat Min Distress Signals 2 | . . 2 . Communications Jammed . | . . . . Distress Signals . | . . . . Times Spotted 24 | . 9 15 . Peak Tracking Total 5 | . 3 5 . Tactical Retreats . | . . . . Traps | -11 -10 -9 -9 ------- Run | Jun Mat Mat Min Traps Triggered . | . . . . Indirectly . | . . . . Trap Hack Attempts . | . . . . Triggered . | . . . . Disarmed . | . . . . Reprogrammed . | . . . . Reused . | . . . . Traps Extracted . | . . . . Installed . | . . . . Triggered . | . . . . Machines | -11 -10 -9 -9 ---------- Run | Jun Mat Mat Min Machines Disabled . | . . . . Max in Single Turn . | . . . . Machines Repaired . | . . . . Machines Sabotaged . | . . . . Overloaded Fab Kills . | . . . . Hacking | -11 -10 -9 -9 --------- Run | Jun Mat Mat Min Machines Accessed 4 | . 4 . . Terminals 3 | . 3 . . Fabricators . | . . . . Repair Stations . | . . . . Recycling Units 1 | . 1 . . Scanalyzers . | . . . . Garrison Access . | . . . . Total Hacks 8 | . 8 . . Successful 4 | . 4 . . Failed 3 | . 3 . . Catastrophic 1 | . 1 . . Database Lockouts 1 | . 1 . . Manual 7 | . 7 . . Terminals 7 | . 7 . . Fabricators . | . . . . Repair Stations . | . . . . Recycling Units 1 | . 1 . . Scanalyzers . | . . . . Garrison Access . | . . . . Terminal Hacks 3 | . 3 . . Part Schematic 1 | . 1 . . Robot Analysis 2 | . 2 . . Fabricator Hacks . | . . . . Repair Station Hacks . | . . . . Recycling Unit Hacks . | . . . . Scanalyzer . | . . . . Garrison Access Hacks . | . . . . Unauthorized Hacks 1 | . 1 . . Terminals . | . . . . Fabricators . | . . . . Repair Stations . | . . . . Recycling Units 1 | . 1 . . Tunnel 1 | . 1 . . Scanalyzers . | . . . . Garrison Access . | . . . . Data Cores Recovered 1 | . . 1 . Used . | . . . . Hacking Detections 2 | . 2 . . Full Trace Events . | . . . . Feedback Events . | . . . . Feedback Blocked . | . . . . Robot Schematics Acquired . | . . . . Robots Built . | . . . . Authchips . | . . . . Time . | . . . . Total Robot Build Rating . | . . . . Part Schematics Acquired 1 | . 1 . . Parts Built . | . . . . Authchips . | . . . . Time . | . . . . Total Part Build Rating . | . . . . Parts Repaired . | . . . . Time . | . . . . Parts Recycled . | . . . . Recycled Matter . | . . . . Retrieved Matter . | . . . . Retrieved Components . | . . . . Parts Scanalyzed . | . . . . Part Schematics Acquired . | . . . . Parts Damaged . | . . . . Bothacking | -11 -10 -9 -9 ------------ Run | Jun Mat Mat Min Used RIF Installer . | . . . . Robots Hacked . | . . . . Non-combat . | . . . . Combat . | . . . . Robot Hacks Applied . | . . . . Relay Couplers Released . | . . . . Fabnet Peak Effective % . | . . . . Robots Rewired . | . . . . Allies Hacked . | . . . . Hacks Repelled . | . . . . Allies | -11 -10 -9 -9 -------- Run | Jun Mat Mat Min Total Allies . | . . . . Largest Group . | . . . . Highest-Rated Group . | . . . . Highest-Rated Ally . | . . . . Total Orders . | . . . . Ally Attacks . | . . . . Total Damage . | . . . . Kills . | . . . . Allies Corrupted . | . . . . Allies Melted . | . . . . Intel | -11 -10 -9 -9 ------- Run | Jun Mat Mat Min Robot Analysis Total 2 | . 2 . . Derelict Logs Recovered . | . . . . Drone Launches . | . . . . Drone Recoveries . | . . . . Exploration | -11 -10 -9 -9 ------------- Run | Jun Mat Mat Min Turns Passed 1862 | . 1330 532 . Spaces Moved 931 | 1 663 267 . Core . | . . . . Treads 440 | . 173 267 . Legs 491 | 1 490 . . Wheels . | . . . . Hover . | . . . . Flight . | . . . . Fastest Speed 120 | 120 120 160 . Average Speed 175 | 120 181 160 . Slowest Speed 190 | 120 190 160 . Overloaded Moves . | . . . . Propulsion Burnouts . | . . . . Robots Hopped . | . . . . Cave-ins Triggered . | . . . . Exploration Rate (%) 31 | 2 85 37 2 Regions Visited 3 Branch Regions 1 Pre-discovered Areas 1 | . 1 . . Known Exits Taken . | . . . . Unknown Exits Taken 3 | 1 1 1 . Scrap Searched . | . . . . Spaces Dug . | . . . . Terrain Destroyed 7 | . 7 . . Melee . | . . . . Projectile . | . . . . AOE 7 | . 7 . . Terrain Rammed . | . . . . Walls Destroyed . | . . . . Machines Disabled . | . . . . Actions | -11 -10 -9 -9 --------- Run | Jun Mat Mat Min Total 1067 | . 754 313 . Wait 47 | . 35 12 . Move 928 | . 662 266 . Hop . | . . . . Pick Up 16 | . 16 . . Fast Attach 5 | . 4 1 . Attach 7 | . 3 4 . Detach . | . . . . Swap . | . . . . Drop 10 | . 10 . . Fire 45 | . 15 30 . Melee . | . . . . Ram . | . . . . Kick 8 | . 8 . . Crush 1 | . 1 . . Escape Stasis . | . . . . Rewire . | . . . . Trap . | . . . . Miscellaneous . | . . . . Route ------- -11/Junkyard -10/Materials (discovered 3 exits: [*Mat x3]) -9/Materials (discovered 2 exits: [*Mat] / [*Min]) -9/Mines History --------- Turn | Location | Event 1 | -11/Junkyard | Discovered new exit (range 0) 1 | -11/Junkyard | Entered Materials 315 | -10/Materials | Build established: Mutant 449 | -10/Materials | Discovered new exit (range 9) 669 | -10/Materials | Central database locked down 746 | -10/Materials | Discovered new exit (range 15) 998 | -10/Materials | Discovered new exit (range 7) 1331 | -10/Materials | Entered another Materials area 1331 | -9/Materials | Evolved 2 slots: Utility x2 1741 | -9/Materials | Discovered new exit (range 5) 1837 | -9/Materials | Discovered new exit (range 16) 1863 | -9/Materials | Entered Mines 1863 | -9/Mines | Self-destructed Last Messages --------------- 01782_ R-06 Scavenger collects Lgt. Assault Rifle. 01786_ R-06 Scavenger collects Wheel. 01810_ EM Shotgun destroyed. 01816_ R-06 Scavenger collects Welding Torch. 01819_ R-06 Scavenger collects Terrain Scanner. 01822_ Y-45 Defender misfires. 01823_ Y-45 Defender destroyed. 01823_ Destroyed Hover Unit. 01823_ R-06 Scavenger collects Lgt. Ion Engine. 01826_ Sensor Array fried. 01826_ Hover Unit fried. 01826_ Lgt. Ion Engine fried. 01826_ W-16 Scout destroyed. 01832_ Acquired 11 matter. 01837_ EXIT=FOUND 01842_ K-01 Serf collects debris. 01853_ R-06 Scavenger collects Corrupted Visual Processing Unit. 01857_ R-06 Scavenger collects Lgt. Treads. LOCATION=UNKNOWN GOAL=ESCAPE Map ----- +----------------------------------------------------+ | | | | | | | | | | | | | | | ?????????????????????????????????? | | ?????????????????????????????????? | | ?????????????????????????????????? | | ?????????????????????????????????? | | ?????????????????????????????????? | | ?????????????????????????????????? | | ?????????????????????????????????? | | ?????????????????????????????????? | | ?????????????????????????????????? | | ?????????????????????????????????? | | ?????????????????????????????????? | | ?????????????????????????????????? | | ?????????????????????????????????? | | ?????????????????????????????????? | | ?????????????????????????????????? | | ????????????????????????####?????? | | ??????????????????# #####*]##????? | | ???????????????????? ]]! ##???? | | ???????????????????????# @ #???? | | ???????????????????????## #???? | | ????????????????????????##[ #???? | | ??????????????????????????# #???? | | ???????????????????????????###???? | | ?????????????????????????????????? | | ?????????????????????????????????? | | ?????????????????????????????????? | | ?????????????????????????????????? | | ?????????????????????????????????? | | ?????????????????????????????????? | | ?????????????????????????????????? | | ?????????????????????????????????? | | ?????????????????????????????????? | | ?????????????????????????????????? | | ?????????????????????????????????? | | ?????????????????????????????????? | | ?????????????????????????????????? | | ?????????????????????????????????? | | ?????????????????????????????????? | | ?????????????????????????????????? | | ?????????????????????????????????? | | ?????????????????????????????????? | | ?????????????????????????????????? | | ?????????????????????????????????? | +----------------------------------------------------+ Best States ------------- Heat Dissipation 28 Energy Generation 14 Energy Capacity 280 Matter Stores 300 Matter Capacity 300 Sight Range 16 Terrain Scan Density 10 Evasion (%) 40 Recoil Reduction 2 Offensive Hacking 10 Item Schematics ----------------- Cargo Storage Unit | -10/Materials | Hacked Robot Schematics ------------------ None Fabricated ------------ Nothing Alien Tech Used ----------------- None Achievements -------------- None Challenges ------------ None Game ------ Seed HelicalSuperchargedMediator Manual? 0 Play Time 00:05:37 Cumulative 334.4 hours Start 2023.04.29 @ 18:59:27 End 2023.04.29 @ 20:42:58 Sessions 2 Manual Loads 0 Difficulty Rogue Special Mode None Game No. 472 Rogue 445 Adventurer 4 Explorer 23 Win Type - Total 19 Types 14/0/2/2/1/0/0/0/0 Lore% 77 Gallery% 92 Achievement% 82 Wizard Run 0 Options --------- ASCII 0 Keyboard 1 Movement Numpad Keybinds 0 Fullscreen 2 Font 18/SmallcapsGlow Map View 76x50 Tactical HUD 1 Map Filters NONE Filters NONE Steam 1 RUN: 385a2a75-23da-4ca6-95b7-c4d3c7758171